Workbook

Sheet حسابا العملاء
H2: جملة واصل منه | I2: جملة واصل له | J2: اجمالى الرصيد
H3: =SUBTOTAL(9,H6:H3096) -> 22135794.2 | I3: =SUBTOTAL(9,I6:I3096) -> 35425000.57 | J3: =H3-I3 -> -13289206.37
A4: التاريخ | B4: اسم العميل | C4: البيان | D4: وارد كمية | E4: صادر كمية | F4: سعر الطن | G4: سعر اردب | H4: واصل منه | I4: واصل له | J4: الرصيد | K4: تراكمى
A5: 2015-01-15 | B5: اسم العميل 1 | C5: حساب ماقبلة | D5: 43170 | F5: 1 | H5: =(D5*F5)+(G5*D5/300) -> 43170 | I5: =(F5*E5)+(G5*E5/300) -> 0 | J5: =H5-I5 -> 43170 | K5: =SUBTOTAL(9,$I$5:I5)-SUBTOTAL(9,$H$5:H5) -> -43170
A6: 2015-01-16 | B6: اسم العميل 2 | C6: حساب ماقبلة | D6: 5913 | F6: 1 | H6: 5913 | I6: 0 | J6: 5913 | K6: =SUBTOTAL(9,$I$5:I6)-SUBTOTAL(9,$H$5:H6) -> -49083
A7: 2015-01-17 | B7: dear | C7: حساب ماقبلة | E7: 118501 | F7: 1 | H7: 0 | I7: 118501 | J7: -118501 | K7: =SUBTOTAL(9,$I$5:I7)-SUBTOTAL(9,$H$5:H7) -> 69418
A8: 2015-01-18 | B8: اسم العميل 4 | C8: حساب ماقبلة | E8: 27232 | F8: 1 | H8: 0 | I8: 27232 | J8: -27232 | K8: =SUBTOTAL(9,$I$5:I8)-SUBTOTAL(9,$H$5:H8) -> 96650
A9: 2015-01-19 | B9: اسم العميل 5 | C9: حساب ماقبلة | E9: 170703 | F9: 1 | H9: 0 | I9: 170703 | J9: -170703 | K9: =SUBTOTAL(9,$I$5:I9)-SUBTOTAL(9,$H$5:H9) -> 267353
A10: 2015-01-20 | B10: اسم العميل 6 | C10: حساب ماقبلة | E10: 6641 | F10: 1 | H10: 0 | I10: 6641 | J10: -6641 | K10: =SUBTOTAL(9,$I$5:I10)-SUBTOTAL(9,$H$5:H10) -> 273994
A11: 2015-01-21 | B11: اسم العميل 7 | C11: حساب ماقبلة | E11: 1145 | F11: 1 | H11: 0 | I11: 1145 | J11: -1145 | K11: =SUBTOTAL(9,$I$5:I11)-SUBTOTAL(9,$H$5:H11) -> 275139
A12: 2015-01-22 | B12: اسم العميل 8 | C12: حساب ماقبلة | E12: 12854 | F12: 1 | H12: 0 | I12: 12854 | J12: -12854 | K12: =SUBTOTAL(9,$I$5:I12)-SUBTOTAL(9,$H$5:H12) -> 287993
A13: 2015-01-23 | B13: اسم العميل 9 | C13: حساب ماقبلة | E13: 53525 | F13: 1 | H13: 0 | I13: 53525 | J13: -53525 | K13: =SUBTOTAL(9,$I$5:I13)-SUBTOTAL(9,$H$5:H13) -> 341518
A14: 2015-01-24 | B14: اسم العميل 10 | C14: حساب ماقبلة | E14: 5400 | F14: 1 | H14: 0 | I14: 5400 | J14: -5400 | K14: =SUBTOTAL(9,$I$5:I14)-SUBTOTAL(9,$H$5:H14) -> 346918
A15: 2015-01-25 | B15: اسم العميل 11 | C15: SAAD | E15: 2500 | F15: 1 | H15: 0 | I15: 2500 | J15: -2500 | K15: =SUBTOTAL(9,$I$5:I15)-SUBTOTAL(9,$H$5:H15) -> 349418
A16: 2015-01-26 | B16: اسم العميل 12 | C16: SAAD | E16: 600 | F16: 1 | H16: 0 | I16: 600 | J16: -600 | K16: =SUBTOTAL(9,$I$5:I16)-SUBTOTAL(9,$H$5:H16) -> 350018
A17: 2019-06-24 | B17: Hassan | C17: SAAD | E17: 105150 | F17: 1 | H17: 0 | I17: 105150 | J17: -105150 | K17: =SUBTOTAL(9,$I$5:I17)-SUBTOTAL(9,$H$5:H17) -> 455168
A18: 2019-06-24 | B18: Mohamed | C18: SAAD | E18: 26130 | F18: 1 | H18: 0 | I18: 26130 | J18: -26130 | K18: =SUBTOTAL(9,$I$5:I18)-SUBTOTAL(9,$H$5:H18) -> 481298
A19: 2019-06-24 | B19: Mohamed | C19: SAAD | E19: 245678 | F19: 1 | H19: 0 | I19: 245678 | J19: -245678 | K19: =SUBTOTAL(9,$I$5:I19)-SUBTOTAL(9,$H$5:H19) -> 726976
A20: 2019-06-24 | B20: Mohamed | C20: SAAD | E20: 12760 | F20: 1 | H20: 0 | I20: 12760 | J20: -12760 | K20: =SUBTOTAL(9,$I$5:I20)-SUBTOTAL(9,$H$5:H20) -> 739736
A21: 2015-01-31 | B21: Mohamed | C21: حساب ماقبلة | E21: 7162 | F21: 1 | H21: 0 | I21: 7162 | J21: -7162 | K21: =SUBTOTAL(9,$I$5:I21)-SUBTOTAL(9,$H$5:H21) -> 746898
A22: 2015-02-01 | B22: اسم العميل 18 | C22: حت فول | E22: 860 | F22: 2.35 | H22: 0 | I22: 2021 | J22: -2021 | K22: =SUBTOTAL(9,$I$5:I22)-SUBTOTAL(9,$H$5:H22) -> 748919
A23: 2015-02-02 | B23: اسم العميل 19 | C23: قشر فول | E23: 4065 | F23: 2.3 | H23: 0 | I23: 9349.5 | J23: -9349.5 | K23: =SUBTOTAL(9,$I$5:I23)-SUBTOTAL(9,$H$5:H23) -> 758268.5
A24: 2015-02-03 | B24: اسم العميل 20 | C24: حصى انجليزى | E24: 5000 | F24: 5.65 | H24: 0 | I24: 28250 | J24: -28250 | K24: =SUBTOTAL(9,$I$5:I24)-SUBTOTAL(9,$H$5:H24) -> 786518.5
A25: 2015-02-04 | B25: اسم العميل 50 | C25: مجروش استرالى | E25: 1000 | F25: 7.65 | H25: 0 | I25: 7650 | J25: -7650 | K25: =SUBTOTAL(9,$I$5:I25)-SUBTOTAL(9,$H$5:H25) -> 794168.5
A26: 2015-02-05 | B26: اسم العميل 50 | C26: مجروش ليتوانى | E26: 250 | F26: 6.65 | H26: 0 | I26: 1662.5 | J26: -1662.5 | K26: =SUBTOTAL(9,$I$5:I26)-SUBTOTAL(9,$H$5:H26) -> 795831
A27: 2015-02-06 | B27: اسم العميل 50 | C27: حصى انجليزى | E27: 1000 | F27: 5.65 | H27: 0 | I27: 5650 | J27: -5650 | K27: =SUBTOTAL(9,$I$5:I27)-SUBTOTAL(9,$H$5:H27) -> 801481
A28: 2015-02-07 | B28: اسم العميل 50 | C28: عدس تركى | E28: 20 | F28: 20.5 | H28: 0 | I28: 410 | J28: -410 | K28: =SUBTOTAL(9,$I$5:I28)-SUBTOTAL(9,$H$5:H28) -> 801891
A29: 2015-02-08 | B29: اسم العميل 50 | C29: مجروش ليتوانى | E29: 2500 | F29: 6.65 | H29: 0 | I29: 16625 | J29: -16625 | K29: =SUBTOTAL(9,$I$5:I29)-SUBTOTAL(9,$H$5:H29) -> 818516
A30: 2015-02-09 | B30: اسم العميل 26 | C30: حصى انجليزى | E30: 2000 | F30: 5.65 | H30: 0 | I30: 11300 | J30: -11300 | K30: =SUBTOTAL(9,$I$5:I30)-SUBTOTAL(9,$H$5:H30) -> 829816
A31: 2015-02-10 | B31: اسم العميل 27 | C31: ذرة فيشار | E31: 500 | F31: 10.5 | H31: 0 | I31: 5250 | J31: -5250 | K31: =SUBTOTAL(9,$I$5:I31)-SUBTOTAL(9,$H$5:H31) -> 835066
A32: 2015-02-11 | B32: اسم العميل 1 | C32: ابيض شفاف | D32: 5000 | F32: 5.2 | H32: 26000 | I32: 0 | J32: 26000 | K32: =SUBTOTAL(9,$I$5:I32)-SUBTOTAL(9,$H$5:H32) -> 809066
A33: 2015-02-12 | B33: اسم العميل 2 | C33: ابيض طبيعى | D33: 1000 | F33: 5.15 | H33: 5150 | I33: 0 | J33: 5150 | K33: =SUBTOTAL(9,$I$5:I33)-SUBTOTAL(9,$H$5:H33) -> 803916
A34: 2015-02-13 | B34: اسم العميل 3 | C34: ابيض طبيعى | D34: 4000 | F34: 5.15 | H34: 20600 | I34: 0 | J34: 20600 | K34: =SUBTOTAL(9,$I$5:I34)-SUBTOTAL(9,$H$5:H34) -> 783316
A35: 2015-02-14 | B35: اسم العميل 4 | C35: شكاير كسر | D35: 2000 | F35: 1.65 | H35: 3300 | I35: 0 | J35: 3300 | K35: =SUBTOTAL(9,$I$5:I35)-SUBTOTAL(9,$H$5:H35) -> 780016
A36: 2015-02-15 | B36: اسم العميل 5 | C36: نقدية | E36: 33000 | F36: 1 | H36: 0 | I36: 33000 | J36: -33000 | K36: =SUBTOTAL(9,$I$5:I36)-SUBTOTAL(9,$H$5:H36) -> 813016
A37: 2015-02-16 | B37: اسم العميل 6 | C37: نقدية | D37: 47200 | F37: 1 | H37: 47200 | I37: 0 | J37: 47200 | K37: =SUBTOTAL(9,$I$5:I37)-SUBTOTAL(9,$H$5:H37) -> 765816
A38: 2015-02-17 | B38: اسم العميل 7 | C38: قشر فول | E38: 585 | F38: 2.3 | H38: 0 | I38: 1345.5 | J38: -1345.5 | K38: =SUBTOTAL(9,$I$5:I38)-SUBTOTAL(9,$H$5:H38) -> 767161.5
A39: 2015-02-18 | B39: اسم العميل 8 | C39: حصى انجليزى | E39: 8000 | F39: 5.65 | H39: 0 | I39: 45200 | J39: -45200 | K39: =SUBTOTAL(9,$I$5:I39)-SUBTOTAL(9,$H$5:H39) -> 812361.5
A40: 2015-02-19 | B40: اسم العميل 9 | C40: قشر فول | E40: 3110 | F40: 2.3 | H40: 0 | I40: 7153 | J40: -7153 | K40: =SUBTOTAL(9,$I$5:I40)-SUBTOTAL(9,$H$5:H40) -> 819514.5
A41: 2015-02-20 | B41: اسم العميل 10 | C41: عدس تركى | E41: 1000 | F41: 20 | H41: 0 | I41: 20000 | J41: -20000 | K41: =SUBTOTAL(9,$I$5:I41)-SUBTOTAL(9,$H$5:H41) -> 839514.5
A42: 2015-02-21 | B42: اسم العميل 11 | C42: حصى انجليزى | E42: 4000 | F42: 5.6 | H42: 0 | I42: 22400 | J42: -22400 | K42: =SUBTOTAL(9,$I$5:I42)-SUBTOTAL(9,$H$5:H42) -> 861914.5
A43: 2015-02-22 | B43: اسم العميل 12 | C43: مجروش ليتوانى | E43: 4000 | F43: 6.6 | H43: 0 | I43: 26400 | J43: -26400 | K43: =SUBTOTAL(9,$I$5:I43)-SUBTOTAL(9,$H$5:H43) -> 888314.5
A44: 2015-02-23 | B44: اسم العميل 13 | C44: مجروش ليتوانى | E44: 100 | F44: 6.6 | H44: 0 | I44: 660 | J44: -660 | K44: =SUBTOTAL(9,$I$5:I44)-SUBTOTAL(9,$H$5:H44) -> 888974.5
A45: 2015-02-24 | B45: اسم العميل 14 | C45: نقدية | E45: 90000 | F45: 1 | H45: 0 | I45: 90000 | J45: -90000 | K45: =SUBTOTAL(9,$I$5:I45)-SUBTOTAL(9,$H$5:H45) -> 978974.5
A46: 2015-02-25 | B46: اسم العميل 15 | C46: نقدية | D46: 5400 | F46: 1 | H46: 5400 | I46: 0 | J46: 5400 | K46: =SUBTOTAL(9,$I$5:I46)-SUBTOTAL(9,$H$5:H46) -> 973574.5
A47: 2015-02-26 | B47: اسم العميل 16 | C47: نقدية | D47: 200 | F47: 1 | H47: 200 | I47: 0 | J47: 200 | K47: =SUBTOTAL(9,$I$5:I47)-SUBTOTAL(9,$H$5:H47) -> 973374.5
A48: 2015-02-27 | B48: اسم العميل 17 | C48: نقدية | D48: 49950 | F48: 1 | H48: 49950 | I48: 0 | J48: 49950 | K48: =SUBTOTAL(9,$I$5:I48)-SUBTOTAL(9,$H$5:H48) -> 923424.5
A49: 2015-02-28 | B49: اسم العميل 18 | C49: فاصوليا | E49: 100 | F49: 21 | H49: 0 | I49: 2100 | J49: -2100 | K49: =SUBTOTAL(9,$I$5:I49)-SUBTOTAL(9,$H$5:H49) -> 925524.5
A50: 2015-03-01 | B50: اسم العميل 19 | C50: لوبيا بلدى | E50: 100 | F50: 17 | H50: 0 | I50: 1700 | J50: -1700 | K50: =SUBTOTAL(9,$I$5:I50)-SUBTOTAL(9,$H$5:H50) -> 927224.5
A51: 2015-03-02 | B51: اسم العميل 20 | C51: عدس تركى | E51: 450 | F51: 19.75 | H51: 0 | I51: 8887.5 | J51: -8887.5 | K51: =SUBTOTAL(9,$I$5:I51)-SUBTOTAL(9,$H$5:H51) -> 936112
A52: 2015-03-03 | B52: اسم العميل 21 | C52: ذرة فيشار | E52: 160 | F52: 10.5 | H52: 0 | I52: 1680 | J52: -1680 | K52: =SUBTOTAL(9,$I$5:I52)-SUBTOTAL(9,$H$5:H52) -> 937792
A53: 2015-03-04 | B53: اسم العميل 22 | C53: ترمس حلو | E53: 500 | F53: 7.75 | H53: 0 | I53: 3875 | J53: -3875 | K53: =SUBTOTAL(9,$I$5:I53)-SUBTOTAL(9,$H$5:H53) -> 941667
A54: 2015-03-05 | B54: اسم العميل 23 | C54: عدس تركى | E54: 2000 | F54: 19.75 | H54: 0 | I54: 39500 | J54: -39500 | K54: =SUBTOTAL(9,$I$5:I54)-SUBTOTAL(9,$H$5:H54) -> 981167
A55: 2015-03-06 | B55: اسم العميل 24 | C55: مجروش استرالى | E55: 2000 | F55: 7.6 | H55: 0 | I55: 15200 | J55: -15200 | K55: =SUBTOTAL(9,$I$5:I55)-SUBTOTAL(9,$H$5:H55) -> 996367
A56: 2015-03-07 | B56: اسم العميل 25 | C56: حصى انجليزى | E56: 25 | F56: 5.6 | H56: 0 | I56: 140 | J56: -140 | K56: =SUBTOTAL(9,$I$5:I56)-SUBTOTAL(9,$H$5:H56) -> 996507
A57: 2015-03-08 | B57: اسم العميل 26 | C57: قشر فول | E57: 225 | F57: 2.3 | H57: 0 | I57: 517.5 | J57: -517.5 | K57: =SUBTOTAL(9,$I$5:I57)-SUBTOTAL(9,$H$5:H57) -> 997024.5
A58: 2015-03-09 | B58: اسم العميل 27 | C58: فول حمام | E58: 720 | F58: 4.7 | H58: 0 | I58: 3384 | J58: -3384 | K58: =SUBTOTAL(9,$I$5:I58)-SUBTOTAL(9,$H$5:H58) -> 1000408.5
A59: 2015-03-10 | B59: اسم العميل 1 | C59: شكاير فصل الوان | D59: 6850 | F59: 1.95 | H59: 13357.5 | I59: 0 | J59: 13357.5 | K59: =SUBTOTAL(9,$I$5:I59)-SUBTOTAL(9,$H$5:H59) -> 987051
A60: 2015-03-11 | B60: اسم العميل 2 | C60: اكياس قشر | D60: 2000 | F60: 5.25 | H60: 10500 | I60: 0 | J60: 10500 | K60: =SUBTOTAL(9,$I$5:I60)-SUBTOTAL(9,$H$5:H60) -> 976551
A61: 2015-03-12 | B61: اسم العميل 3 | C61: نقدية | E61: 28000 | F61: 1 | H61: 0 | I61: 28000 | J61: -28000 | K61: =SUBTOTAL(9,$I$5:I61)-SUBTOTAL(9,$H$5:H61) -> 1004551
A62: 2019-06-24 | B62: Mohamed | C62: نقدية | E62: 15000 | F62: 1 | H62: 0 | I62: 15000 | J62: -15000 | K62: =SUBTOTAL(9,$I$5:I62)-SUBTOTAL(9,$H$5:H62) -> 1019551
A63: 2019-06-24 | B63: Mohamed | C63: نقدية | D63: 50 | F63: 1 | H63: 50 | I63: 0 | J63: 50 | K63: =SUBTOTAL(9,$I$5:I63)-SUBTOTAL(9,$H$5:H63) -> 1019501
A64: 2019-06-24 | B64: Mohamed | C64: عدس تركى | E64: 1000 | F64: 19.75 | H64: 0 | I64: 19750 | J64: -19750 | K64: =SUBTOTAL(9,$I$5:I64)-SUBTOTAL(9,$H$5:H64) -> 1039251
A65: 2019-06-24 | B65: Mohamed | C65: حصى انجليزى | E65: 1000 | F65: 5.6 | H65: 0 | I65: 5600 | J65: -5600 | K65: =SUBTOTAL(9,$I$5:I65)-SUBTOTAL(9,$H$5:H65) -> 1044851
A66: 2015-03-17 | B66: اسم العميل 8 | C66: ذرة فيشار | E66: 100 | F66: 10.5 | H66: 0 | I66: 1050 | J66: -1050 | K66: =SUBTOTAL(9,$I$5:I66)-SUBTOTAL(9,$H$5:H66) -> 1045901
A67: 2015-03-18 | B67: اسم العميل 9 | C67: حصى انجليزى | E67: 2000 | F67: 5.6 | H67: 0 | I67: 11200 | J67: -11200 | K67: =SUBTOTAL(9,$I$5:I67)-SUBTOTAL(9,$H$5:H67) -> 1057101
A68: 2015-03-19 | B68: اسم العميل 10 | C68: عدس تركى | E68: 650 | F68: 19.75 | H68: 0 | I68: 12837.5 | J68: -12837.5 | K68: =SUBTOTAL(9,$I$5:I68)-SUBTOTAL(9,$H$5:H68) -> 1069938.5
A69: 2015-03-20 | B69: اسم العميل 11 | C69: فول حمام | E69: 1000 | F69: 4.7 | H69: =(D69*F69)+(G69*D69/300) -> 0 | I69: =(F69*E69)+(G69*E69/300) -> 4700 | J69: =H69-I69 -> -4700 | K69: =SUBTOTAL(9,$I$5:I69)-SUBTOTAL(9,$H$5:H69) -> 1074638.5
A70: 2015-03-21 | B70: اسم العميل 12 | C70: حصى انجليزى | E70: 3000 | F70: 5.6 | H70: 0 | I70: 16800 | J70: -16800 | K70: =SUBTOTAL(9,$I$5:I70)-SUBTOTAL(9,$H$5:H70) -> 1091438.5
A71: 2015-03-22 | B71: اسم العميل 13 | C71: مجروش ليتوانى | E71: 1500 | F71: 6.6 | H71: 0 | I71: 9900 | J71: -9900 | K71: =SUBTOTAL(9,$I$5:I71)-SUBTOTAL(9,$H$5:H71) -> 1101338.5
A72: 2015-03-23 | B72: اسم العميل 14 | C72: عدس تركى | E72: 200 | F72: 19.75 | H72: 0 | I72: 3950 | J72: -3950 | K72: =SUBTOTAL(9,$I$5:I72)-SUBTOTAL(9,$H$5:H72) -> 1105288.5
A73: 2019-06-24 | B73: Mohamed | C73: ابيض شفاف | D73: 10000 | F73: 5.1 | H73: 51000 | I73: 0 | J73: 51000 | K73: =SUBTOTAL(9,$I$5:I73)-SUBTOTAL(9,$H$5:H73) -> 1054288.5
A74: 2019-06-24 | B74: Mohamed | C74: ابيض طبيعى | D74: 3600 | F74: 5.05 | H74: 18180 | I74: 0 | J74: 18180 | K74: =SUBTOTAL(9,$I$5:I74)-SUBTOTAL(9,$H$5:H74) -> 1036108.5
A75: 2019-06-24 | B75: Mohamed | C75: كون | D75: 1250 | F75: 2.6 | H75: 3250 | I75: 0 | J75: 3250 | K75: =SUBTOTAL(9,$I$5:I75)-SUBTOTAL(9,$H$5:H75) -> 1032858.5
A76: 2019-06-24 | B76: Mohamed | C76: شكاير ترمس الصقر | D76: 1450 | F76: 1.65 | H76: 2392.5 | I76: 0 | J76: 2392.5 | K76: =SUBTOTAL(9,$I$5:I76)-SUBTOTAL(9,$H$5:H76) -> 1030466
A77: 2015-03-28 | B77: اسم العميل 19 | C77: شكاير فول الصقر | D77: 1450 | F77: 1.65 | H77: 2392.5 | I77: 0 | J77: 2392.5 | K77: =SUBTOTAL(9,$I$5:I77)-SUBTOTAL(9,$H$5:H77) -> 1028073.5
A78: 2015-03-29 | B78: اسم العميل 20 | C78: شكاير فصل الواون ارز | D78: 13418 | F78: 1.95 | H78: 26165.1 | I78: 0 | J78: 26165.1 | K78: =SUBTOTAL(9,$I$5:I78)-SUBTOTAL(9,$H$5:H78) -> 1001908.4
A79: 2015-03-30 | B79: اسم العميل 21 | C79: شكاير فصل الواون ارز | E79: 13418 | F79: 2.37 | H79: 0 | I79: 31800.66 | J79: -31800.66 | K79: =SUBTOTAL(9,$I$5:I79)-SUBTOTAL(9,$H$5:H79) -> 1033709.06
A80: 2015-03-31 | B80: اسم العميل 22 | C80: نقدية | E80: 20000 | F80: 1 | H80: 0 | I80: 20000 | J80: -20000 | K80: =SUBTOTAL(9,$I$5:I80)-SUBTOTAL(9,$H$5:H80) -> 1053709.06
A81: 2015-04-01 | B81: اسم العميل 23 | C81: نقدية | D81: 50000 | F81: 1 | H81: 50000 | I81: 0 | J81: 50000 | K81: =SUBTOTAL(9,$I$5:I81)-SUBTOTAL(9,$H$5:H81) -> 1003709.06
A82: 2015-04-02 | B82: اسم العميل 24 | C82: نقدية | D82: 260 | F82: 1 | H82: 260 | I82: 0 | J82: 260 | K82: =SUBTOTAL(9,$I$5:I82)-SUBTOTAL(9,$H$5:H82) -> 1003449.06
A83: 2015-04-03 | B83: اسم العميل 25 | C83: مجروش ليتوانى | E83: 9500 | F83: 6.25 | H83: 0 | I83: 59375 | J83: -59375 | K83: =SUBTOTAL(9,$I$5:I83)-SUBTOTAL(9,$H$5:H83) -> 1062824.06
A84: 2015-04-04 | B84: اسم العميل 26 | C84: عدس تركى | E84: 1000 | F84: 21 | H84: 0 | I84: 21000 | J84: -21000 | K84: =SUBTOTAL(9,$I$5:I84)-SUBTOTAL(9,$H$5:H84) -> 1083824.06
A85: 2015-04-05 | B85: اسم العميل 27 | C85: عدس تركى | E85: 300 | F85: 20 | H85: 0 | I85: 6000 | J85: -6000 | K85: =SUBTOTAL(9,$I$5:I85)-SUBTOTAL(9,$H$5:H85) -> 1089824.06
A86: 2015-04-06 | B86: اسم العميل 1 | C86: ذرة فيشار | E86: 100 | F86: 10.5 | H86: 0 | I86: 1050 | J86: -1050 | K86: =SUBTOTAL(9,$I$5:I86)-SUBTOTAL(9,$H$5:H86) -> 1090874.06
A87: 2015-04-07 | B87: اسم العميل 2 | C87: فاصوليا | E87: 100 | F87: 19 | H87: 0 | I87: 1900 | J87: -1900 | K87: =SUBTOTAL(9,$I$5:I87)-SUBTOTAL(9,$H$5:H87) -> 1092774.06
A88: 2015-04-08 | B88: اسم العميل 3 | C88: مجروش ليتوانى | E88: 500 | F88: 6.6 | H88: 0 | I88: 3300 | J88: -3300 | K88: =SUBTOTAL(9,$I$5:I88)-SUBTOTAL(9,$H$5:H88) -> 1096074.06
A89: 2015-04-09 | B89: اسم العميل 4 | C89: مجروش استرالى | E89: 500 | F89: 7.5 | H89: 0 | I89: 3750 | J89: -3750 | K89: =SUBTOTAL(9,$I$5:I89)-SUBTOTAL(9,$H$5:H89) -> 1099824.06
A90: 2015-04-10 | B90: اسم العميل 5 | C90: شكاير 10 ك عادية | D90: 2000 | F90: 0.9 | H90: 1800 | I90: 0 | J90: 1800 | K90: =SUBTOTAL(9,$I$5:I90)-SUBTOTAL(9,$H$5:H90) -> 1098024.06
A91: 2015-04-11 | B91: اسم العميل 6 | C91: شكاير 10 ك عادية | E91: 2000 | F91: 0.9 | H91: 0 | I91: 1800 | J91: -1800 | K91: =SUBTOTAL(9,$I$5:I91)-SUBTOTAL(9,$H$5:H91) -> 1099824.06
A92: 2019-06-24 | B92: Mohamed | C92: ابيض شفاف | D92: 15100 | F92: 5.1 | H92: 77010 | I92: 0 | J92: 77010 | K92: =SUBTOTAL(9,$I$5:I92)-SUBTOTAL(9,$H$5:H92) -> 1022814.06
A93: 2019-06-24 | B93: Mohamed | C93: ابيض طبيعى | D93: 500 | F93: 5.05 | H93: 2525 | I93: 0 | J93: 2525 | K93: =SUBTOTAL(9,$I$5:I93)-SUBTOTAL(9,$H$5:H93) -> 1020289.06
A94: 2019-06-24 | B94: Mohamed | C94: عدس تركى | E94: 40 | F94: 21 | H94: 0 | I94: 840 | J94: -840 | K94: =SUBTOTAL(9,$I$5:I94)-SUBTOTAL(9,$H$5:H94) -> 1021129.06
A95: 2019-06-24 | B95: Mohamed | C95: شعيرعريض | E95: 7115 | F95: 3.4 | H95: 0 | I95: 24191 | J95: -24191 | K95: =SUBTOTAL(9,$I$5:I95)-SUBTOTAL(9,$H$5:H95) -> 1045320.06
A96: 2015-04-16 | B96: اسم العميل 11 | C96: نقدية | E96: 15000 | F96: 1 | H96: 0 | I96: 15000 | J96: -15000 | K96: =SUBTOTAL(9,$I$5:I96)-SUBTOTAL(9,$H$5:H96) -> 1060320.06
A97: 2015-04-17 | B97: اسم العميل 12 | C97: نقدية | D97: 50510 | F97: 1 | H97: 50510 | I97: 0 | J97: 50510 | K97: =SUBTOTAL(9,$I$5:I97)-SUBTOTAL(9,$H$5:H97) -> 1009810.06
A98: 2015-04-18 | B98: اسم العميل 13 | C98: مجروش ليتوانى | E98: 8000 | F98: 6.5 | H98: 0 | I98: 52000 | J98: -52000 | K98: =SUBTOTAL(9,$I$5:I98)-SUBTOTAL(9,$H$5:H98) -> 1061810.06
A99: 2015-04-19 | B99: اسم العميل 14 | C99: شعيرعريض | E99: 9405 | F99: 3.4 | H99: 0 | I99: 31977 | J99: -31977 | K99: =SUBTOTAL(9,$I$5:I99)-SUBTOTAL(9,$H$5:H99) -> 1093787.06
A100: 2015-04-20 | B100: اسم العميل 15 | C100: SAAD | E100: 3875 | F100: 2.2 | H100: 0 | I100: 8525 | J100: -8525 | K100: =SUBTOTAL(9,$I$5:I100)-SUBTOTAL(9,$H$5:H100) -> 1102312.06
A101: 2015-04-21 | B101: اسم العميل 16 | C101: SAAD | E101: 6000 | F101: 7.5 | H101: 0 | I101: 45000 | J101: -45000 | K101: =SUBTOTAL(9,$I$5:I101)-SUBTOTAL(9,$H$5:H101) -> 1147312.06
A102: 2015-04-22 | B102: اسم العميل 17 | C102: SAAD | E102: 2000 | F102: 20 | H102: 0 | I102: 40000 | J102: -40000 | K102: =SUBTOTAL(9,$I$5:I102)-SUBTOTAL(9,$H$5:H102) -> 1187312.06
A103: 2015-04-23 | B103: اسم العميل 18 | C103: SAAD | E103: 2000 | F103: 5.5 | H103: 0 | I103: 11000 | J103: -11000 | K103: =SUBTOTAL(9,$I$5:I103)-SUBTOTAL(9,$H$5:H103) -> 1198312.06
A104: 2015-04-24 | B104: اسم العميل 19 | C104: SAAD | E104: 8000 | F104: 5.2 | H104: 0 | I104: 41600 | J104: -41600 | K104: =SUBTOTAL(9,$I$5:I104)-SUBTOTAL(9,$H$5:H104) -> 1239912.06
A105: 2015-04-25 | B105: اسم العميل 20 | C105: SAAD | E105: 8000 | F105: 20 | H105: 0 | I105: 160000 | J105: -160000 | K105: =SUBTOTAL(9,$I$5:I105)-SUBTOTAL(9,$H$5:H105) -> 1399912.06
A106: 2015-04-26 | B106: اسم العميل 21 | C106: SAAD | E106: 250 | F106: 20 | H106: 0 | I106: 5000 | J106: -5000 | K106: =SUBTOTAL(9,$I$5:I106)-SUBTOTAL(9,$H$5:H106) -> 1404912.06
A107: 2015-04-27 | B107: اسم العميل 22 | C107: SAAD | E107: 500 | F107: 7.5 | H107: 0 | I107: 3750 | J107: -3750 | K107: =SUBTOTAL(9,$I$5:I107)-SUBTOTAL(9,$H$5:H107) -> 1408662.06
A108: 2015-04-28 | B108: اسم العميل 23 | C108: SAAD | E108: 295 | F108: 4.7 | H108: 0 | I108: 1386.5 | J108: -1386.5 | K108: =SUBTOTAL(9,$I$5:I108)-SUBTOTAL(9,$H$5:H108) -> 1410048.56
A109: 2015-04-29 | B109: اسم العميل 24 | C109: SAAD | E109: 4000 | F109: 7.5 | H109: 0 | I109: 30000 | J109: -30000 | K109: =SUBTOTAL(9,$I$5:I109)-SUBTOTAL(9,$H$5:H109) -> 1440048.56
A110: 2015-04-30 | B110: اسم العميل 25 | C110: SAAD | E110: 4000 | F110: 5.5 | H110: 0 | I110: 22000 | J110: -22000 | K110: =SUBTOTAL(9,$I$5:I110)-SUBTOTAL(9,$H$5:H110) -> 1462048.56
A111: 2015-05-01 | B111: اسم العميل 26 | C111: SAAD | E111: 250 | F111: 20 | H111: 0 | I111: 5000 | J111: -5000 | K111: =SUBTOTAL(9,$I$5:I111)-SUBTOTAL(9,$H$5:H111) -> 1467048.56
A112: 2015-05-02 | B112: اسم العميل 27 | C112: SAAD | D112: 22500 | F112: 5.2 | H112: 117000 | I112: 0 | J112: 117000 | K112: =SUBTOTAL(9,$I$5:I112)-SUBTOTAL(9,$H$5:H112) -> 1350048.56
A113: 2015-05-03 | B113: اسم العميل 1 | C113: SAAD | D113: 3500 | F113: 5.1 | H113: 17850 | I113: 0 | J113: 17850 | K113: =SUBTOTAL(9,$I$5:I113)-SUBTOTAL(9,$H$5:H113) -> 1332198.56
A114: 2015-05-04 | B114: اسم العميل 2 | C114: SAAD | E114: 100 | F114: 7.75 | H114: 0 | I114: 775 | J114: -775 | K114: =SUBTOTAL(9,$I$5:I114)-SUBTOTAL(9,$H$5:H114) -> 1332973.56
A115: 2015-05-05 | B115: اسم العميل 3 | C115: SAAD | D115: 2500 | F115: 1 | H115: 2500 | I115: 0 | J115: 2500 | K115: =SUBTOTAL(9,$I$5:I115)-SUBTOTAL(9,$H$5:H115) -> 1330473.56
A116: 2015-05-06 | B116: اسم العميل 4 | C116: SAAD | D116: 50000 | F116: 1 | H116: 50000 | I116: 0 | J116: 50000 | K116: =SUBTOTAL(9,$I$5:I116)-SUBTOTAL(9,$H$5:H116) -> 1280473.56
A117: 2015-05-07 | B117: اسم العميل 5 | C117: SAAD | D117: 25000 | F117: 1 | H117: 25000 | I117: 0 | J117: 25000 | K117: =SUBTOTAL(9,$I$5:I117)-SUBTOTAL(9,$H$5:H117) -> 1255473.56
A118: 2015-05-08 | B118: اسم العميل 6 | C118: SAAD | D118: 25000 | F118: 1 | H118: 25000 | I118: 0 | J118: 25000 | K118: =SUBTOTAL(9,$I$5:I118)-SUBTOTAL(9,$H$5:H118) -> 1230473.56
A119: 2015-05-09 | B119: اسم العميل 7 | C119: SAAD | E119: 1400 | F119: 19.75 | H119: 0 | I119: 27650 | J119: -27650 | K119: =SUBTOTAL(9,$I$5:I119)-SUBTOTAL(9,$H$5:H119) -> 1258123.56
A120: 2015-05-10 | B120: اسم العميل 8 | C120: SAAD | E120: 300 | F120: 10.4 | H120: 0 | I120: 3120 | J120: -3120 | K120: =SUBTOTAL(9,$I$5:I120)-SUBTOTAL(9,$H$5:H120) -> 1261243.56
A121: 2015-05-11 | B121: اسم العميل 9 | C121: SAAD | E121: 6000 | F121: 19.75 | H121: 0 | I121: 118500 | J121: -118500 | K121: =SUBTOTAL(9,$I$5:I121)-SUBTOTAL(9,$H$5:H121) -> 1379743.56
A122: 2015-05-12 | B122: اسم العميل 10 | C122: SAAD | E122: 1000 | F122: 16.75 | H122: 0 | I122: 16750 | J122: -16750 | K122: =SUBTOTAL(9,$I$5:I122)-SUBTOTAL(9,$H$5:H122) -> 1396493.56
A123: 2015-05-13 | B123: اسم العميل 11 | C123: SAAD | E123: 25 | F123: 22 | H123: 0 | I123: 550 | J123: -550 | K123: =SUBTOTAL(9,$I$5:I123)-SUBTOTAL(9,$H$5:H123) -> 1397043.56
A124: 2015-05-14 | B124: اسم العميل 12 | C124: SAAD | E124: 20 | F124: 11 | H124: 0 | I124: 220 | J124: -220 | K124: =SUBTOTAL(9,$I$5:I124)-SUBTOTAL(9,$H$5:H124) -> 1397263.56
A125: 2015-05-15 | B125: اسم العميل 13 | C125: SAAD | E125: 25 | F125: 20 | H125: 0 | I125: 500 | J125: -500 | K125: =SUBTOTAL(9,$I$5:I125)-SUBTOTAL(9,$H$5:H125) -> 1397763.56
A126: 2015-05-16 | B126: اسم العميل 14 | C126: SAAD | E126: 500 | F126: 5.2 | H126: 0 | I126: 2600 | J126: -2600 | K126: =SUBTOTAL(9,$I$5:I126)-SUBTOTAL(9,$H$5:H126) -> 1400363.56
A127: 2015-05-17 | B127: اسم العميل 15 | C127: SAAD | E127: 10 | F127: 21 | H127: 0 | I127: 210 | J127: -210 | K127: =SUBTOTAL(9,$I$5:I127)-SUBTOTAL(9,$H$5:H127) -> 1400573.56
A128: 2015-05-18 | B128: اسم العميل 16 | C128: SAAD | E128: 500 | F128: 4.7 | H128: 0 | I128: 2350 | J128: -2350 | K128: =SUBTOTAL(9,$I$5:I128)-SUBTOTAL(9,$H$5:H128) -> 1402923.56
A129: 2015-05-19 | B129: اسم العميل 17 | C129: SAAD | E129: 100 | F129: 7.75 | H129: 0 | I129: 775 | J129: -775 | K129: =SUBTOTAL(9,$I$5:I129)-SUBTOTAL(9,$H$5:H129) -> 1403698.56
A130: 2015-05-20 | B130: اسم العميل 18 | C130: SAAD | E130: 500 | F130: 5.5 | H130: 0 | I130: 2750 | J130: -2750 | K130: =SUBTOTAL(9,$I$5:I130)-SUBTOTAL(9,$H$5:H130) -> 1406448.56
A131: 2015-05-21 | B131: اسم العميل 19 | C131: SAAD | D131: 5500 | F131: 5.25 | H131: 28875 | I131: 0 | J131: 28875 | K131: =SUBTOTAL(9,$I$5:I131)-SUBTOTAL(9,$H$5:H131) -> 1377573.56
A132: 2015-05-22 | B132: اسم العميل 20 | C132: SAAD | D132: 700 | F132: 5.15 | H132: 3605 | I132: 0 | J132: 3605 | K132: =SUBTOTAL(9,$I$5:I132)-SUBTOTAL(9,$H$5:H132) -> 1373968.56
A133: 2015-05-23 | B133: اسم العميل 21 | C133: SAAD | E133: 127000 | F133: 1 | H133: =(D133*F133)+(G133*D133/300) -> 0 | I133: =(F133*E133)+(G133*E133/300) -> 127000 | J133: =H133-I133 -> -127000 | K133: =SUBTOTAL(9,$I$5:I133)-SUBTOTAL(9,$H$5:H133) -> 1500968.56
A134: 2015-05-24 | B134: اسم العميل 22 | C134: SAAD | D134: 150000 | F134: 1 | H134: 150000 | I134: 0 | J134: 150000 | K134: =SUBTOTAL(9,$I$5:I134)-SUBTOTAL(9,$H$5:H134) -> 1350968.56
A135: 2015-05-25 | B135: اسم العميل 23 | C135: SAAD | D135: 685 | F135: 1 | H135: 685 | I135: 0 | J135: 685 | K135: =SUBTOTAL(9,$I$5:I135)-SUBTOTAL(9,$H$5:H135) -> 1350283.56
A136: 2015-05-26 | B136: اسم العميل 24 | C136: SAAD | D136: 19990 | F136: 1 | H136: 19990 | I136: 0 | J136: 19990 | K136: =SUBTOTAL(9,$I$5:I136)-SUBTOTAL(9,$H$5:H136) -> 1330293.56
A137: 2015-05-27 | B137: اسم العميل 25 | C137: SAAD | D137: 40000 | F137: 1 | H137: 40000 | I137: 0 | J137: 40000 | K137: =SUBTOTAL(9,$I$5:I137)-SUBTOTAL(9,$H$5:H137) -> 1290293.56
A138: 2015-05-28 | B138: اسم العميل 26 | C138: SAAD | E138: 3000 | F138: 19.75 | H138: 0 | I138: 59250 | J138: -59250 | K138: =SUBTOTAL(9,$I$5:I138)-SUBTOTAL(9,$H$5:H138) -> 1349543.56
A139: 2015-05-29 | B139: اسم العميل 27 | C139: SAAD | E139: 1000 | F139: 6 | H139: 0 | I139: 6000 | J139: -6000 | K139: =SUBTOTAL(9,$I$5:I139)-SUBTOTAL(9,$H$5:H139) -> 1355543.56
A140: 2015-05-30 | B140: اسم العميل 17 | C140: SAAD | E140: 500 | F140: 7.5 | H140: 0 | I140: 3750 | J140: -3750 | K140: =SUBTOTAL(9,$I$5:I140)-SUBTOTAL(9,$H$5:H140) -> 1359293.56
A141: 2015-05-31 | B141: اسم العميل 1 | C141: SAAD | E141: 1000 | F141: 5.6 | H141: 0 | I141: 5600 | J141: -5600 | K141: =SUBTOTAL(9,$I$5:I141)-SUBTOTAL(9,$H$5:H141) -> 1364893.56
A142: 2015-06-01 | B142: اسم العميل 2 | C142: SAAD | E142: 1250 | F142: 4.4 | H142: 0 | I142: 5500 | J142: -5500 | K142: =SUBTOTAL(9,$I$5:I142)-SUBTOTAL(9,$H$5:H142) -> 1370393.56
A143: 2015-06-02 | B143: اسم العميل 3 | C143: SAAD | D143: 6000 | F143: 5.3 | H143: 31800 | I143: 0 | J143: 31800 | K143: =SUBTOTAL(9,$I$5:I143)-SUBTOTAL(9,$H$5:H143) -> 1338593.56
A144: 2015-06-03 | B144: اسم العميل 1 | C144: SAAD | E144: 8000 | F144: 7.5 | H144: 0 | I144: 60000 | J144: -60000 | K144: =SUBTOTAL(9,$I$5:I144)-SUBTOTAL(9,$H$5:H144) -> 1398593.56
A145: 2015-06-04 | B145: اسم العميل 2 | C145: SAAD | E145: 25 | F145: 5.75 | H145: 0 | I145: 143.75 | J145: -143.75 | K145: =SUBTOTAL(9,$I$5:I145)-SUBTOTAL(9,$H$5:H145) -> 1398737.31
A146: 2015-06-05 | B146: اسم العميل 3 | C146: SAAD | D146: 300 | F146: 1 | H146: 300 | I146: 0 | J146: 300 | K146: =SUBTOTAL(9,$I$5:I146)-SUBTOTAL(9,$H$5:H146) -> 1398437.31
A147: 2015-06-06 | B147: اسم العميل 4 | C147: SAAD | D147: 600 | F147: 19.5 | H147: 11700 | I147: 0 | J147: 11700 | K147: =SUBTOTAL(9,$I$5:I147)-SUBTOTAL(9,$H$5:H147) -> 1386737.31
A148: 2015-06-07 | B148: اسم العميل 5 | C148: SAAD | E148: 2000 | F148: 7.4 | H148: 0 | I148: 14800 | J148: -14800 | K148: =SUBTOTAL(9,$I$5:I148)-SUBTOTAL(9,$H$5:H148) -> 1401537.31
A149: 2015-06-08 | B149: اسم العميل 6 | C149: SAAD | E149: 8000 | F149: 6 | H149: 0 | I149: 48000 | J149: -48000 | K149: =SUBTOTAL(9,$I$5:I149)-SUBTOTAL(9,$H$5:H149) -> 1449537.31
A150: 2015-06-09 | B150: اسم العميل 7 | C150: SAAD | E150: 1000 | F150: 5.4 | H150: 0 | I150: 5400 | J150: -5400 | K150: =SUBTOTAL(9,$I$5:I150)-SUBTOTAL(9,$H$5:H150) -> 1454937.31
A151: 2015-06-10 | B151: اسم العميل 8 | C151: SAAD | E151: 500 | F151: 7.75 | H151: 0 | I151: 3875 | J151: -3875 | K151: =SUBTOTAL(9,$I$5:I151)-SUBTOTAL(9,$H$5:H151) -> 1458812.31
A152: 2015-06-11 | B152: اسم العميل 9 | C152: SAAD | E152: 500 | F152: 19.75 | H152: 0 | I152: 9875 | J152: -9875 | K152: =SUBTOTAL(9,$I$5:I152)-SUBTOTAL(9,$H$5:H152) -> 1468687.31
A153: 2015-06-12 | B153: اسم العميل 10 | C153: SAAD | E153: 250 | F153: 20 | H153: 0 | I153: 5000 | J153: -5000 | K153: =SUBTOTAL(9,$I$5:I153)-SUBTOTAL(9,$H$5:H153) -> 1473687.31
A154: 2015-06-13 | B154: اسم العميل 11 | C154: SAAD | E154: 100 | F154: 4.7 | H154: 0 | I154: 470 | J154: -470 | K154: =SUBTOTAL(9,$I$5:I154)-SUBTOTAL(9,$H$5:H154) -> 1474157.31
A155: 2015-06-14 | B155: اسم العميل 12 | C155: SAAD | E155: 3000 | F155: 5.6 | H155: 0 | I155: 16800 | J155: -16800 | K155: =SUBTOTAL(9,$I$5:I155)-SUBTOTAL(9,$H$5:H155) -> 1490957.31
A156: 2015-06-15 | B156: اسم العميل 13 | C156: SAAD | E156: 1500 | F156: 6.6 | H156: 0 | I156: 9900 | J156: -9900 | K156: =SUBTOTAL(9,$I$5:I156)-SUBTOTAL(9,$H$5:H156) -> 1500857.31
A157: 2015-06-16 | B157: اسم العميل 14 | C157: SAAD | E157: 500 | F157: 7.4 | H157: 0 | I157: 3700 | J157: -3700 | K157: =SUBTOTAL(9,$I$5:I157)-SUBTOTAL(9,$H$5:H157) -> 1504557.31
A158: 2015-06-17 | B158: اسم العميل 15 | C158: SAAD | E158: 500 | F158: 19.75 | H158: 0 | I158: 9875 | J158: -9875 | K158: =SUBTOTAL(9,$I$5:I158)-SUBTOTAL(9,$H$5:H158) -> 1514432.31
A159: 2015-06-18 | B159: اسم العميل 16 | C159: SAAD | E159: 500 | F159: 7.65 | H159: 0 | I159: 3825 | J159: -3825 | K159: =SUBTOTAL(9,$I$5:I159)-SUBTOTAL(9,$H$5:H159) -> 1518257.31
A160: 2015-06-19 | B160: اسم العميل 17 | C160: SAAD | E160: 400 | F160: 17 | H160: 0 | I160: 6800 | J160: -6800 | K160: =SUBTOTAL(9,$I$5:I160)-SUBTOTAL(9,$H$5:H160) -> 1525057.31
A161: 2015-06-20 | B161: اسم العميل 18 | C161: SAAD | E161: 100 | F161: 18 | H161: 0 | I161: 1800 | J161: -1800 | K161: =SUBTOTAL(9,$I$5:I161)-SUBTOTAL(9,$H$5:H161) -> 1526857.31
A162: 2015-06-21 | B162: اسم العميل 19 | C162: SAAD | E162: 100 | F162: 17 | H162: 0 | I162: 1700 | J162: -1700 | K162: =SUBTOTAL(9,$I$5:I162)-SUBTOTAL(9,$H$5:H162) -> 1528557.31
A163: 2015-06-22 | B163: اسم العميل 20 | C163: SAAD | E163: 100 | F163: 18 | H163: 0 | I163: 1800 | J163: -1800 | K163: =SUBTOTAL(9,$I$5:I163)-SUBTOTAL(9,$H$5:H163) -> 1530357.31
A164: 2015-06-23 | B164: اسم العميل 21 | C164: SAAD | E164: 100 | F164: 10.4 | H164: 0 | I164: 1040 | J164: -1040 | K164: =SUBTOTAL(9,$I$5:I164)-SUBTOTAL(9,$H$5:H164) -> 1531397.31
A165: 2015-06-24 | B165: اسم العميل 22 | C165: SAAD | E165: 150 | F165: 6 | H165: 0 | I165: 900 | J165: -900 | K165: =SUBTOTAL(9,$I$5:I165)-SUBTOTAL(9,$H$5:H165) -> 1532297.31
A166: 2015-06-25 | B166: اسم العميل 23 | C166: SAAD | D166: 3150 | F166: 1.95 | H166: 6142.5 | I166: 0 | J166: 6142.5 | K166: =SUBTOTAL(9,$I$5:I166)-SUBTOTAL(9,$H$5:H166) -> 1526154.81
A167: 2015-06-26 | B167: اسم العميل 24 | C167: SAAD | E167: 1000 | F167: 5.6 | H167: 0 | I167: 5600 | J167: -5600 | K167: =SUBTOTAL(9,$I$5:I167)-SUBTOTAL(9,$H$5:H167) -> 1531754.81
A168: 2015-06-27 | B168: اسم العميل 25 | C168: SAAD | E168: 500 | F168: 6.6 | H168: 0 | I168: 3300 | J168: -3300 | K168: =SUBTOTAL(9,$I$5:I168)-SUBTOTAL(9,$H$5:H168) -> 1535054.81
A169: 2015-06-28 | B169: اسم العميل 26 | C169: SAAD | E169: 500 | F169: 6 | H169: 0 | I169: 3000 | J169: -3000 | K169: =SUBTOTAL(9,$I$5:I169)-SUBTOTAL(9,$H$5:H169) -> 1538054.81
A170: 2015-06-29 | B170: اسم العميل 27 | C170: SAAD | D170: 12000 | F170: 5.35 | H170: 64200 | I170: 0 | J170: 64200 | K170: =SUBTOTAL(9,$I$5:I170)-SUBTOTAL(9,$H$5:H170) -> 1473854.81
A171: 2015-06-30 | B171: اسم العميل 14 | C171: SAAD | D171: 2500 | F171: 5.25 | H171: 13125 | I171: 0 | J171: 13125 | K171: =SUBTOTAL(9,$I$5:I171)-SUBTOTAL(9,$H$5:H171) -> 1460729.81
A172: 2015-07-01 | B172: اسم العميل 15 | C172: SAAD | E172: 10000 | F172: 1 | H172: 0 | I172: 10000 | J172: -10000 | K172: =SUBTOTAL(9,$I$5:I172)-SUBTOTAL(9,$H$5:H172) -> 1470729.81
A173: 2015-07-02 | B173: اسم العميل 16 | C173: SAAD | E173: 154000 | F173: 1 | H173: 0 | I173: 154000 | J173: -154000 | K173: =SUBTOTAL(9,$I$5:I173)-SUBTOTAL(9,$H$5:H173) -> 1624729.81
A174: 2015-07-03 | B174: اسم العميل 17 | C174: SAAD | D174: 23000 | F174: 1 | H174: 23000 | I174: 0 | J174: 23000 | K174: =SUBTOTAL(9,$I$5:I174)-SUBTOTAL(9,$H$5:H174) -> 1601729.81
A175: 2015-07-04 | B175: اسم العميل 1 | C175: SAAD | D175: 300 | F175: 1 | H175: 300 | I175: 0 | J175: 300 | K175: =SUBTOTAL(9,$I$5:I175)-SUBTOTAL(9,$H$5:H175) -> 1601429.81
A176: 2015-07-05 | B176: اسم العميل 2 | C176: SAAD | E176: 8000 | F176: 6.4 | H176: 0 | I176: 51200 | J176: -51200 | K176: =SUBTOTAL(9,$I$5:I176)-SUBTOTAL(9,$H$5:H176) -> 1652629.81
A177: 2015-07-06 | B177: اسم العميل 3 | C177: SAAD | E177: 500 | F177: 4.4 | H177: 0 | I177: 2200 | J177: -2200 | K177: =SUBTOTAL(9,$I$5:I177)-SUBTOTAL(9,$H$5:H177) -> 1654829.81
A178: 2015-07-07 | B178: اسم العميل 4 | C178: SAAD | E178: 5000 | F178: 5.4 | H178: 0 | I178: 27000 | J178: -27000 | K178: =SUBTOTAL(9,$I$5:I178)-SUBTOTAL(9,$H$5:H178) -> 1681829.81
A179: 2015-07-08 | B179: اسم العميل 5 | C179: SAAD | E179: 1000 | F179: 5.3 | H179: 0 | I179: 5300 | J179: -5300 | K179: =SUBTOTAL(9,$I$5:I179)-SUBTOTAL(9,$H$5:H179) -> 1687129.81
A180: 2015-07-09 | B180: اسم العميل 6 | C180: SAAD | E180: 2000 | F180: 20.25 | H180: 0 | I180: 40500 | J180: -40500 | K180: =SUBTOTAL(9,$I$5:I180)-SUBTOTAL(9,$H$5:H180) -> 1727629.81
A181: 2015-07-10 | B181: اسم العميل 7 | C181: SAAD | E181: 9980 | F181: 3.7 | H181: 0 | I181: 36926 | J181: -36926 | K181: =SUBTOTAL(9,$I$5:I181)-SUBTOTAL(9,$H$5:H181) -> 1764555.81
A182: 2015-07-11 | B182: اسم العميل 8 | C182: SAAD | E182: 50 | F182: 20 | H182: 0 | I182: 1000 | J182: -1000 | K182: =SUBTOTAL(9,$I$5:I182)-SUBTOTAL(9,$H$5:H182) -> 1765555.81
A183: 2015-07-12 | B183: اسم العميل 9 | C183: SAAD | E183: 20 | F183: 10.4 | H183: 0 | I183: 208 | J183: -208 | K183: =SUBTOTAL(9,$I$5:I183)-SUBTOTAL(9,$H$5:H183) -> 1765763.81
A184: 2015-07-13 | B184: اسم العميل 10 | C184: SAAD | E184: 25 | F184: 6.15 | H184: 0 | I184: 153.75 | J184: -153.75 | K184: =SUBTOTAL(9,$I$5:I184)-SUBTOTAL(9,$H$5:H184) -> 1765917.56
A185: 2015-07-14 | B185: اسم العميل 11 | C185: SAAD | E185: 25 | F185: 5.6 | H185: 0 | I185: 140 | J185: -140 | K185: =SUBTOTAL(9,$I$5:I185)-SUBTOTAL(9,$H$5:H185) -> 1766057.56
A186: 2015-07-15 | B186: اسم العميل 12 | C186: SAAD | E186: 1000 | F186: 4.3 | H186: 0 | I186: 4300 | J186: -4300 | K186: =SUBTOTAL(9,$I$5:I186)-SUBTOTAL(9,$H$5:H186) -> 1770357.56
A187: 2015-07-16 | B187: اسم العميل 13 | C187: SAAD | E187: 3305 | F187: 2.15 | H187: 0 | I187: 7105.75 | J187: -7105.75 | K187: =SUBTOTAL(9,$I$5:I187)-SUBTOTAL(9,$H$5:H187) -> 1777463.31
A188: 2015-07-17 | B188: اسم العميل 14 | C188: SAAD | E188: 500 | F188: 7.4 | H188: 0 | I188: 3700 | J188: -3700 | K188: =SUBTOTAL(9,$I$5:I188)-SUBTOTAL(9,$H$5:H188) -> 1781163.31
A189: 2015-07-18 | B189: اسم العميل 15 | C189: SAAD | E189: 1000 | F189: 5.6 | H189: 0 | I189: 5600 | J189: -5600 | K189: =SUBTOTAL(9,$I$5:I189)-SUBTOTAL(9,$H$5:H189) -> 1786763.31
A190: 2015-07-19 | B190: اسم العميل 16 | C190: SAAD | E190: 250 | F190: 20 | H190: 0 | I190: 5000 | J190: -5000 | K190: =SUBTOTAL(9,$I$5:I190)-SUBTOTAL(9,$H$5:H190) -> 1791763.31
A191: 2015-07-20 | B191: اسم العميل 17 | C191: SAAD | E191: 250 | F191: 4.3 | H191: 0 | I191: 1075 | J191: -1075 | K191: =SUBTOTAL(9,$I$5:I191)-SUBTOTAL(9,$H$5:H191) -> 1792838.31
A192: 2015-07-21 | B192: اسم العميل 1 | C192: SAAD | E192: 250 | F192: 4.9 | H192: 0 | I192: 1225 | J192: -1225 | K192: =SUBTOTAL(9,$I$5:I192)-SUBTOTAL(9,$H$5:H192) -> 1794063.31
A193: 2015-07-22 | B193: اسم العميل 2 | C193: SAAD | D193: 3570 | F193: 1.95 | H193: 6961.5 | I193: 0 | J193: 6961.5 | K193: =SUBTOTAL(9,$I$5:I193)-SUBTOTAL(9,$H$5:H193) -> 1787101.81
A194: 2015-07-23 | B194: اسم العميل 3 | C194: SAAD | E194: 2000 | F194: 20 | H194: 0 | I194: 40000 | J194: -40000 | K194: =SUBTOTAL(9,$I$5:I194)-SUBTOTAL(9,$H$5:H194) -> 1827101.81
A195: 2015-07-24 | B195: اسم العميل 4 | C195: SAAD | E195: 500 | F195: 4.3 | H195: 0 | I195: 2150 | J195: -2150 | K195: =SUBTOTAL(9,$I$5:I195)-SUBTOTAL(9,$H$5:H195) -> 1829251.81
A196: 2015-07-25 | B196: اسم العميل 5 | C196: SAAD | E196: 900 | F196: 4.7 | H196: 0 | I196: 4230 | J196: -4230 | K196: =SUBTOTAL(9,$I$5:I196)-SUBTOTAL(9,$H$5:H196) -> 1833481.81
A197: 2015-07-26 | B197: اسم العميل 6 | C197: SAAD | E197: 250 | F197: 7.75 | H197: =(D197*F197)+(G197*D197/300) -> 0 | I197: =(F197*E197)+(G197*E197/300) -> 1937.5 | J197: =H197-I197 -> -1937.5 | K197: =SUBTOTAL(9,$I$5:I197)-SUBTOTAL(9,$H$5:H197) -> 1835419.31
A198: 2015-07-27 | B198: اسم العميل 7 | C198: SAAD | E198: 100 | F198: 17 | H198: 0 | I198: 1700 | J198: -1700 | K198: =SUBTOTAL(9,$I$5:I198)-SUBTOTAL(9,$H$5:H198) -> 1837119.31
A199: 2015-07-28 | B199: اسم العميل 8 | C199: SAAD | E199: 60 | F199: 10.4 | H199: 0 | I199: 624 | J199: -624 | K199: =SUBTOTAL(9,$I$5:I199)-SUBTOTAL(9,$H$5:H199) -> 1837743.31
A200: 2015-07-29 | B200: اسم العميل 9 | C200: SAAD | E200: 150 | F200: 6.6 | H200: 0 | I200: 990 | J200: -990 | K200: =SUBTOTAL(9,$I$5:I200)-SUBTOTAL(9,$H$5:H200) -> 1838733.31
A201: 2015-07-30 | B201: اسم العميل 10 | C201: SAAD | E201: 200 | F201: 20 | H201: 0 | I201: 4000 | J201: -4000 | K201: =SUBTOTAL(9,$I$5:I201)-SUBTOTAL(9,$H$5:H201) -> 1842733.31
... 2894 more rows

Sheet تصفيه
B4: Row Labels | C4: Sum of الرصيد
B5: Adel | C5: -84811
B6: Ali | C6: -9600
B7: dear | C7: -119125
B8: Hassan | C8: -105150
B9: Mohamed | C9: 90641.5
B10: SAAD | C10: -67360
B11: اسم العميل 1 | C11: 1689516.5
B12: اسم العميل 10 | C12: -2564989.25
B13: اسم العميل 11 | C13: -2625527.5
B14: اسم العميل 12 | C14: -407593
B15: اسم العميل 13 | C15: 3343407
B16: اسم العميل 14 | C16: 1017323
B17: اسم العميل 15 | C17: -2004263
B18: اسم العميل 16 | C18: -4190135
B19: اسم العميل 17 | C19: 1251567.5
B20: اسم العميل 18 | C20: -19671
B21: اسم العميل 19 | C21: -23082
B22: اسم العميل 2 | C22: 1315343.75
B23: اسم العميل 20 | C23: -169167.4
B24: اسم العميل 21 | C24: -166520.66
B25: اسم العميل 22 | C25: 121475
B26: اسم العميل 23 | C26: 15941
B27: اسم العميل 24 | C27: -90550
B28: اسم العميل 25 | C28: -44965
B29: اسم العميل 26 | C29: -105667.5
B30: اسم العميل 27 | C30: 156566
B31: اسم العميل 28 | C31: 50000
B32: اسم العميل 29 | C32: 250
B33: اسم العميل 3 | C33: 3150576
B34: اسم العميل 30 | C34: -34893.75
B35: اسم العميل 31 | C35: -6160
B36: اسم العميل 32 | C36: -8151
B37: اسم العميل 33 | C37: -17250
B38: اسم العميل 4 | C38: -1775792.75
B39: اسم العميل 5 | C39: -3272221
B40: اسم العميل 50 | C40: -31997.5
B41: اسم العميل 55 | C41: -145627.75
B42: اسم العميل 6 | C42: -1389643.9
B43: اسم العميل 7 | C43: -1560449.16
B44: اسم العميل 8 | C44: -1202020
B45: اسم العميل 9 | C45: -3206259.5
B46: Grand Total | C46: -13246036.37
